fUSD/lending_fUSD_20241031
["ID","MTS","AMOUNT","RATE_DAILY","PERIOD"]
[341109173,1730386248567,-801.0,0.00054795,2]
[341109174,1730386248577,-500.0,0.00054795,120]
[341109175,1730386248586,-500.0,0.00054795,120]
[341109177,1730386248595,-250.0,0.00054795,120]
[341109179,1730386248605,-250.0,0.00054795,120]
[341109181,1730386248615,-289.216631,0.00054795,120]
[341109183,1730386248624,-500.0,0.00054795,120]
[341109184,1730386248633,-1000.0,0.00054795,13]
[341109186,1730386248643,-1000.0,0.00054795,13]
[341109188,1730386248652,-1000.0,0.00054795,13]
[341109190,1730386248661,-1000.0,0.00054795,13]
[341109192,1730386248670,-1000.0,0.00054795,13]
[341109194,1730386248679,-1000.0,0.00054795,13]
[341109196,1730386248689,-1000.0,0.00054795,13]
[341109198,1730386248699,-1000.0,0.00054795,13]
[341109200,1730386248708,-1000.0,0.00054795,13]
[341109202,1730386248717,-1000.0,0.00054795,13]
[341109204,1730386248730,-1000.0,0.00054795,13]
[341109206,1730386248740,-1000.0,0.00054795,13]
[341109208,1730386248750,-1000.0,0.00054795,13]
[341109210,1730386248764,-1000.0,0.00054795,13]
[341109212,1730386248773,-1000.0,0.00054795,13]
[341109214,1730386248782,-1000.0,0.00054795,13]
[341109216,1730386248792,-1000.0,0.00054795,13]
[341109218,1730386248802,-1000.0,0.00054795,13]
[341109220,1730386248811,-1000.0,0.00054795,13]
[341109222,1730386248820,-1000.0,0.00054795,13]
[341109224,1730386248830,-1000.0,0.00054795,13]
[341109226,1730386248841,-1000.0,0.00054795,13]
[341109228,1730386248851,-1000.0,0.00054795,13]
[341109230,1730386248864,-1000.0,0.00054795,13]
[341109232,1730386248874,-1000.0,0.00054795,13]
[341109234,1730386248883,-1000.0,0.00054795,13]
[341109236,1730386248892,-1000.0,0.00054795,13]
[341109238,1730386248900,-1000.0,0.00054795,13]
[341109239,1730386248909,-1000.0,0.00054795,13]
[341109241,1730386248918,-957.0,0.00054795,13]
[341109243,1730386248927,-861.0,0.00054795,120]
[341109245,1730386248936,-540.0,0.00054795,120]
[341109247,1730386248946,-500.0,0.00054795,120]
[341109249,1730386248955,-524.0,0.00054795,120]
[341109251,1730386248965,-815.0,0.00054795,120]
[341109253,1730386248975,-653.0,0.00054795,120]
[341109255,1730386248984,-500.0,0.00054795,120]
[341109257,1730386248994,-1059.69,0.000548,60]
[341109259,1730386249003,-1000.0,0.00054865,120]
[341109261,1730386249013,-2300.0,0.000549,20]
[341109263,1730386249023,-280.445,0.00054946,2]
[341109265,1730386249032,-173.47,0.00054968,2]
[341109267,1730386249041,-4749.5568547,0.00055,120]
[341109269,1730386249050,-150.999998,0.00055,120]
[341109271,1730386249060,-3726.00353944,0.00055,120]
[341109273,1730386249070,-602.11682959,0.00055,120]
[341109274,1730386249080,-500.0,0.00055,120]
[341109276,1730386249089,-295.08,0.0005504,30]
[341109278,1730386249099,-150.5,0.0005505,30]
[341109280,1730386249112,-150.5,0.0005506,30]
[341109282,1730386249121,-525.38123335,0.00055068,120]
[341109285,1730386249131,-342.08625376,0.00055068,7]
[341109287,1730386249140,-500.0,0.00055068,120]
[341109288,1730386249149,-631.74997064,0.00055068,2]
[341109290,1730386249159,-500.0,0.00055068,120]
[341109292,1730386249167,-500.0,0.00055068,5]
[341109294,1730386249176,-153.95634684,0.00055068,2]
[341109296,1730386249185,-500.0,0.00055068,2]
[341109298,1730386249194,-300.0,0.00055068,120]
[341109300,1730386249203,-500.0,0.00055068,120]
[341109302,1730386249213,-500.0,0.00055068,120]
[341109304,1730386249222,-500.0,0.00055068,120]
[341109306,1730386249232,-500.0,0.00055068,120]
[341109308,1730386249241,-500.0,0.00055068,120]
[341109310,1730386249250,-500.0,0.00055068,120]
[341109311,1730386249259,-500.0,0.00055068,5]
[341109313,1730386249268,-500.0,0.00055068,120]
[341109315,1730386249278,-219.85547747,0.00055068,120]
[341109316,1730386249287,-500.0,0.00055068,120]
[341109318,1730386249296,-500.0,0.00055068,120]
[341109320,1730386249306,-500.0,0.00055068,120]
[341109321,1730386249315,-496.79560812,0.00055068,120]
[341109323,1730386249324,-500.0,0.00055068,120]
[341109324,1730386249334,-230.54098201,0.00055068,120]
[341109326,1730386249344,-359.74485724,0.00055068,120]
[341109328,1730386249353,-500.0,0.00055068,120]
[341109329,1730386249367,-500.0,0.00055068,120]
[341109331,1730386249377,-609.3291027,0.00055068,120]
[341109332,1730386249386,-500.0,0.00055068,120]
[341109334,1730386249396,-500.0,0.00055068,120]
[341109336,1730386249405,-267.31317706,0.00055068,120]
[341109337,1730386249415,-500.0,0.00055068,120]
[341109339,1730386249424,-500.0,0.00055068,120]
[341109341,1730386249433,-1000.0,0.00055068,120]
[341109342,1730386249442,-500.0,0.00055068,120]
[341109344,1730386249452,-520.9159427,0.00055068,120]
[341109346,1730386249461,-529.09,0.00055068,120]
[341109348,1730386249471,-500.0,0.00055068,120]
[341109349,1730386249480,-500.0,0.00055068,120]
[341109351,1730386249492,-500.0,0.00055068,120]
[341109352,1730386249502,-151.0,0.00055068,120]
[341109354,1730386249512,-360.17554882,0.00055068,120]
[341109356,1730386249522,-151.0,0.00055068,120]
[341109357,1730386249532,-500.0,0.00055068,60]
[341109359,1730386249542,-500.0,0.00055068,120]
[341109361,1730386249552,-272.44930991,0.00055068,120]
[341109363,1730386249562,-500.0,0.00055068,120]
[341109364,1730386249571,-500.0,0.00055068,120]
[341109366,1730386249580,-151.0,0.00055068,120]
[341109368,1730386249590,-500.0,0.00055068,120]
[341109375,1730386249681,-151.0,0.00055068,120]
[341109377,1730386249691,-95.46211754,0.00055068,7]
[341109391,1730386249864,-538.45407442,0.00055068,7]
[341109393,1730386249874,-500.0,0.00055068,120]
[341109394,1730386249883,-151.0,0.00055068,120]
[341109396,1730386249893,-500.0,0.00055068,120]
[341109398,1730386249902,-160.303498,0.00055068,120]
[341109399,1730386249911,-524.14,0.00055068,120]
[341109401,1730386249921,-151.0,0.00055068,60]
[341109403,1730386249930,-22.13842758,0.00055068,120]
[341109407,1730386249962,-128.86157242,0.00055068,120]
[341109408,1730386249972,-500.0,0.00055068,120]
[341109410,1730386249981,-500.0,0.00055068,120]
[341109412,1730386249991,-500.0,0.00055068,120]
[341109414,1730386250000,-148.73842758,0.00055068,120]
[341109416,1730386250012,-351.26157242,0.00055068,120]
[341109417,1730386250021,-151.0,0.00055068,120]
[341109419,1730386250031,-151.0,0.00055068,120]
[341109421,1730386250041,-948.36,0.00055068,120]
[341109423,1730386250050,-500.0,0.00055068,120]
[341109424,1730386250060,-500.0,0.00055068,120]
[341109426,1730386250070,-302.26495294,0.00055068,120]
[341109428,1730386250080,-500.0,0.00055068,120]
[341109429,1730386250090,-500.0,0.00055068,120]
[341109431,1730386250099,-500.0,0.00055068,120]
[341109433,1730386250112,-151.0,0.00055068,120]
[341109435,1730386250122,-500.0,0.00055068,120]
[341109437,1730386250131,-386.7,0.00055068,120]
[341109439,1730386250140,-500.0,0.00055068,120]
[341109440,1730386250149,-157.107717,0.00055068,120]
[341109441,1730386250159,-517.45,0.00055068,120]
[341109442,1730386250168,-151.0,0.00055068,120]
[341109443,1730386250178,-507.798601,0.00055068,120]
[341109444,1730386250188,-500.0,0.00055068,120]
[341109445,1730386250197,-500.0,0.00055068,120]
[341109446,1730386250207,-500.0,0.00055068,120]
[341109447,1730386250216,-500.0,0.00055068,120]
[341109448,1730386250226,-500.0,0.00055068,120]
[341109449,1730386250236,-535.92,0.00055068,120]
[341109450,1730386250245,-500.0,0.00055068,120]
[341109451,1730386250255,-1682.6,0.00055068,2]
[341109453,1730386250265,-1964.11,0.00055068,120]
[341109455,1730386250274,-500.0,0.00055068,120]
[341109456,1730386250284,-151.0,0.00055068,120]
[341109458,1730386250294,-558.86,0.00055068,120]
[341109460,1730386250303,-151.000001,0.00055068,120]
[341109462,1730386250312,-500.0,0.00055068,120]
[341109464,1730386250322,-500.0,0.00055068,120]
[341109466,1730386250331,-151.0,0.00055068,120]
[341109468,1730386250341,-500.0,0.00055068,120]
[341109470,1730386250350,-669.22,0.00055068,120]
[341109472,1730386250364,-155.184148,0.00055068,120]
[341109474,1730386250373,-151.0,0.00055068,120]
[341109476,1730386250384,-436.24338516,0.00055068,120]
[341109478,1730386250395,-500.0,0.00055068,120]
[341109480,1730386250406,-524.25491922,0.00055068,120]
[341109482,1730386250416,-151.0,0.00055068,120]
[341109484,1730386250426,-151.0,0.00055068,120]
[341109486,1730386250436,-500.0,0.00055068,120]
[341109488,1730386250446,-500.0,0.00055068,120]
[341109490,1730386250456,-2000.0,0.00055068,120]
[341109492,1730386250465,-500.0,0.00055068,120]
[341109494,1730386250475,-155.878578,0.00055068,120]
[341109496,1730386250485,-500.0,0.00055068,120]
[341109498,1730386250495,-500.0,0.00055068,120]
[341109500,1730386250504,-151.0,0.00055068,120]
[341109502,1730386250514,-151.0,0.00055068,120]
[341109504,1730386250523,-500.0,0.00055068,120]
[341109506,1730386250532,-500.0,0.00055068,120]
[341109508,1730386250542,-500.0,0.00055068,120]
[341109510,1730386250552,-500.0,0.00055068,120]
[341109512,1730386250562,-500.0,0.00055068,120]
[341109514,1730386250571,-151.0,0.00055068,120]
[341109516,1730386250582,-500.0,0.00055068,120]
[341109518,1730386250591,-287.81464104,0.00055068,120]
[341109520,1730386250601,-500.0,0.00055068,120]
[341109522,1730386250614,-151.0,0.00055068,120]
[341109524,1730386250624,-151.0,0.00055068,120]
[341109526,1730386250633,-151.0,0.00055068,120]
[341109528,1730386250643,-500.0,0.00055068,120]
[341109530,1730386250654,-151.0,0.00055068,120]
[341109532,1730386250664,-500.0,0.00055068,120]
[341109534,1730386250674,-660.1,0.00055068,120]
[341109536,1730386250684,-151.0,0.00055068,120]
[341109537,1730386250693,-500.0,0.00055068,120]
[341109538,1730386250703,-500.0,0.00055068,120]
[341109539,1730386250712,-553.34,0.00055068,120]
[341109540,1730386250722,-500.0,0.00055068,120]
[341109541,1730386250730,-500.0,0.00055068,120]
[341109542,1730386250737,-500.0,0.00055068,120]
[341109543,1730386250744,-500.0,0.00055068,120]
[341109544,1730386250752,-500.0,0.00055068,120]
[341109545,1730386250765,-1035.51,0.00055068,120]
[341109546,1730386250774,-500.0,0.00055068,120]
[341109547,1730386250784,-294.11953776,0.00055068,60]
[341109548,1730386250794,-500.0,0.00055068,120]
[341109549,1730386250804,-151.0,0.00055068,120]
[341109550,1730386250813,-500.0,0.00055068,120]
[341109551,1730386250823,-159.54410311,0.00055068,120]
[341109552,1730386250833,-500.0,0.00055068,120]
[341109553,1730386250844,-151.0,0.00055068,120]
[341109554,1730386250854,-1135.77,0.00055068,120]
[341109555,1730386250866,-500.0,0.00055068,120]
[341109556,1730386250875,-500.0,0.00055068,120]
[341109557,1730386250885,-1313.8,0.00055068,120]
[341109558,1730386250895,-500.0,0.00055068,120]
[341109559,1730386250904,-1000.0,0.00055068,120]
[341109560,1730386250914,-500.0,0.00055068,120]
[341109561,1730386250923,-151.543141,0.00055068,120]
[341109562,1730386250933,-573.54,0.00055068,120]
[341109563,1730386250942,-654.96,0.00055068,120]
[341109564,1730386251031,-500.0,0.00055068,120]
[341109565,1730386251040,-585.34,0.00055068,120]
[341109566,1730386251050,-531.61,0.00055068,120]
[341109567,1730386251061,-1000.0,0.00055068,120]
[341109568,1730386251071,-160.087023,0.00055068,120]
[341109569,1730386251080,-151.0,0.00055068,120]
[341109570,1730386251090,-1021.05,0.00055068,120]
[341109571,1730386251099,-162.480551,0.00055068,120]
[341109572,1730386251111,-500.0,0.00055068,120]
[341109573,1730386251120,-500.0,0.00055068,120]
[341109574,1730386251130,-500.0,0.00055068,120]
[341109575,1730386251139,-500.0,0.00055068,120]
[341109576,1730386251149,-500.0,0.00055068,120]
[341109577,1730386251159,-500.0,0.00055068,2]
[341109578,1730386251168,-500.0,0.00055068,120]
[341109579,1730386251178,-500.0,0.00055068,120]
[341109580,1730386251187,-1605.18,0.00055068,7]
[341109581,1730386251197,-656.47,0.00055068,120]
[341109582,1730386251206,-1032.7,0.00055068,120]
[341109583,1730386251215,-200.2,0.00055068,7]
[341109584,1730386251223,-1591.58,0.00055068,21]
[341109585,1730386251233,-500.0,0.00055068,120]
[341109586,1730386251243,-500.0,0.00055068,120]
[341109587,1730386251253,-500.0,0.00055068,120]
[341109588,1730386251262,-1220.65,0.00055068,120]
[341109589,1730386251272,-500.0,0.00055068,120]
[341109590,1730386251281,-500.0,0.00055068,120]
[341109591,1730386251291,-151.0,0.00055068,120]
[341109592,1730386251300,-500.0,0.00055068,7]
[341109593,1730386251310,-151.0,0.00055068,120]
[341109594,1730386251319,-500.0,0.00055068,120]
[341109595,1730386251330,-500.0,0.00055068,120]
[341109596,1730386251340,-594.63,0.00055068,120]
[341109597,1730386251350,-500.0,0.00055068,120]
[341109598,1730386251362,-500.0,0.00055068,120]
[341109599,1730386251371,-151.0,0.00055068,120]
[341109600,1730386251381,-500.0,0.00055068,120]
[341109601,1730386251390,-500.0,0.00055068,120]
[341109602,1730386251400,-500.0,0.00055068,120]
[341109603,1730386251410,-500.0,0.00055068,120]
[341109604,1730386251419,-500.0,0.00055068,120]
[341109605,1730386251429,-500.0,0.00055068,120]
[341109606,1730386251439,-161.00341479,0.00055068,120]
[341109607,1730386251448,-1383.459588,0.00055068,120]
[341109608,1730386251458,-500.0,0.00055068,120]
[341109609,1730386251467,-1383.459588,0.00055068,120]
[341109610,1730386251477,-500.0,0.00055068,120]
[341109611,1730386251487,-151.0,0.00055068,120]
[341109612,1730386251496,-500.0,0.00055068,120]
[341109613,1730386251505,-500.0,0.00055068,120]
[341109614,1730386251515,-151.0,0.00055068,120]
[341109615,1730386251525,-710.63,0.00055068,120]
[341109616,1730386251534,-500.0,0.00055068,120]
[341109617,1730386251544,-151.0,0.00055068,7]
[341109618,1730386251554,-1908.02,0.00055068,120]
[341109619,1730386251563,-151.0,0.00055068,7]
[341109620,1730386251573,-500.0,0.00055068,120]
[341109621,1730386251582,-500.0,0.00055068,120]
[341109622,1730386251593,-646.65,0.00055068,120]
[341109623,1730386251604,-500.0,0.00055068,120]
[341109624,1730386251616,-581.27,0.00055068,120]
[341109625,1730386251625,-753.15,0.00055068,120]
[341109626,1730386251635,-500.0,0.00055068,120]
[341109627,1730386251644,-151.0,0.00055068,120]
[341109628,1730386251654,-560.848824,0.00055068,120]
[341109629,1730386251664,-151.0,0.00055068,120]
[341109630,1730386251674,-151.0,0.00055068,120]
[341109631,1730386251683,-151.0,0.00055068,120]
[341109632,1730386251693,-560.848824,0.00055068,120]
[341109633,1730386251703,-500.0,0.00055068,120]
[341109634,1730386251712,-151.0,0.00055068,120]
[341109635,1730386251722,-3166.22,0.00055068,120]
[341109636,1730386251732,-500.0,0.00055068,120]
[341109637,1730386251741,-500.0,0.00055068,120]
[341109638,1730386251752,-912.95,0.00055068,120]
[341109639,1730386251762,-1938.45,0.00055068,120]
[341109640,1730386251772,-151.0,0.00055068,120]
[341109641,1730386251781,-151.0,0.00055068,120]
[341109642,1730386251791,-1783.218262,0.00055068,120]
[341109643,1730386251801,-179.248984,0.00055068,120]
[341109644,1730386251810,-151.0,0.00055068,120]
[341109645,1730386251820,-277.355367,0.00055068,120]
[341109646,1730386251830,-507.28,0.00055068,120]
[341109647,1730386251840,-500.0,0.00055068,120]
[341109648,1730386251849,-1783.218262,0.00055068,120]
[341109649,1730386251861,-500.0,0.00055068,120]
[341109650,1730386251870,-1002.39,0.00055068,120]
[341109651,1730386251879,-500.0,0.00055068,120]
[341109652,1730386251889,-901.17,0.00055068,120]
[341109653,1730386251898,-546.67,0.00055068,120]
[341109654,1730386251907,-500.0,0.00055068,120]
[341109655,1730386251917,-500.0,0.00055068,120]
[341109656,1730386251927,-922.94,0.00055068,120]
[341109657,1730386251937,-500.0,0.00055068,120]
[341109658,1730386251946,-500.0,0.00055068,120]
[341109659,1730386251956,-151.0,0.00055068,120]
[341109660,1730386251965,-500.0,0.00055068,120]
[341109661,1730386251974,-1229.39,0.00055068,120]
[341109662,1730386251984,-279.195,0.00055068,120]
[341109663,1730386251994,-151.0,0.00055068,120]
[341109664,1730386252004,-500.0,0.00055068,120]
[341109665,1730386252013,-322.64,0.00055068,120]
[341109666,1730386252023,-151.0,0.00055068,120]
[341109667,1730386252033,-570.59,0.00055068,120]
[341109668,1730386252042,-500.0,0.00055068,120]
[341109669,1730386252051,-151.0,0.00055068,120]
[341109670,1730386252061,-151.0,0.00055068,120]
[341109671,1730386252071,-151.0,0.00055068,120]
[341109672,1730386252080,-151.0,0.00055068,120]
[341109673,1730386252089,-500.0,0.00055068,120]
[341109674,1730386252099,-2144.375693,0.00055068,120]
[341109675,1730386252111,-805.39,0.00055068,120]
[341109676,1730386252121,-500.0,0.00055068,120]
[341109677,1730386252130,-500.0,0.00055068,120]
[341109678,1730386252139,-834.7,0.00055068,120]
[341109679,1730386252149,-500.0,0.00055068,120]
[341109680,1730386252159,-151.0,0.00055068,120]
[341109681,1730386252168,-1423.9,0.00055068,120]
[341109682,1730386252178,-497.70061996,0.00055068,120]
[341109683,1730386252187,-270.06078098,0.00055068,120]
[341109684,1730386252197,-500.0,0.00055068,120]
[341109685,1730386252207,-222.342377,0.00055068,120]
[341109686,1730386252216,-500.0,0.00055068,120]
[341109687,1730386252224,-151.0,0.00055068,120]
[341109688,1730386252234,-500.0,0.00055068,120]
[341109689,1730386252244,-222.342377,0.00055068,120]
[341109690,1730386252254,-500.0,0.00055068,120]
[341109691,1730386252263,-500.0,0.00055068,120]
[341109692,1730386252273,-500.0,0.00055068,120]
[341109693,1730386252282,-890.13,0.00055068,120]
[341109694,1730386252292,-500.0,0.00055068,120]
[341109695,1730386252301,-500.0,0.00055068,120]
[341109696,1730386252312,-164.823773,0.00055068,120]
[341109697,1730386252321,-309.06986341,0.00055068,120]
[341109698,1730386252346,-200.0,0.00048278,2]
[341109699,1730386252426,-190.93013659,0.00055068,120]
[341109700,1730386252436,-500.0,0.00055068,120]
[341109701,1730386252446,-1314.67,0.00055068,120]
[341109702,1730386252455,-500.0,0.00055068,120]
[341109703,1730386252465,-500.0,0.00055068,120]
[341109704,1730386252474,-500.0,0.00055068,120]
[341109705,1730386252483,-500.0,0.00055068,120]
[341109706,1730386252493,-500.0,0.00055068,120]
[341109707,1730386252502,-164.313255,0.00055068,120]
[341109708,1730386252512,-1000.0,0.00055139,120]
[341109709,1730386252521,-210.19865848,0.00055254,28]
[341109710,1730386252531,-467.2,0.00055312,120]
[341109711,1730386252541,-1526.81,0.00055341,120]
[341109712,1730386252551,-500.0,0.00055341,120]
[341109713,1730386252561,-500.0,0.00055342,120]
[341109714,1730386252571,-500.0,0.00055342,120]
[341109715,1730386252581,-500.0,0.00055342,5]
[341109716,1730386252590,-500.0,0.00055342,2]
[341109717,1730386252600,-300.0,0.00055342,120]
[341109718,1730386252611,-500.0,0.00055342,120]
[341109719,1730386252621,-500.0,0.00055342,120]
[341109720,1730386252630,-500.0,0.00055342,120]
[341109721,1730386252640,-500.0,0.00055342,120]
[341109722,1730386252650,-500.0,0.00055342,120]
[341109723,1730386252659,-500.0,0.00055342,120]
[341109724,1730386252669,-472.94716437,0.00055342,5]
[341109725,1730386253086,-470.3333,0.0004435,2]
[341109726,1730386253096,-159.76331993,0.00044573,10]
[341109727,1730386253105,-500.0,0.00047973,10]
[341109728,1730386253118,-150.0,0.00052418,120]
[341109729,1730386253128,-1000.0,0.00053452,10]
[341109730,1730386253137,-151.0,0.00055068,7]
[341109731,1730386253148,-27.05283563,0.00055342,5]
[341109732,1730386253158,-500.0,0.00055342,120]
[341109733,1730386253168,-500.0,0.00055342,120]
[341109734,1730386253179,-500.0,0.00055342,120]
[341109735,1730386253189,-500.0,0.00055342,120]
[341109736,1730386253198,-500.0,0.00055342,120]
[341109737,1730386253207,-500.0,0.00055342,120]
[341109738,1730386253217,-525.94660771,0.00055342,120]
[341109739,1730386253226,-566.23133688,0.00055342,120]
[341109740,1730386253236,-500.0,0.00055342,120]
[341109741,1730386253245,-1000.0,0.00055342,120]
[341109742,1730386253254,-500.0,0.00055342,120]
[341109743,1730386253263,-529.09,0.00055342,120]
[341109744,1730386253273,-500.0,0.00055342,120]
[341109745,1730386253283,-500.0,0.00055342,120]
[341109746,1730386253292,-500.0,0.00055342,120]
[341109747,1730386253301,-500.0,0.00055342,60]
[341109748,1730386253310,-529.56694804,0.00055342,120]
[341109749,1730386253320,-500.0,0.00055342,120]
[341109750,1730386253329,-500.0,0.00055342,120]
[341109751,1730386253339,-500.0,0.00055342,120]
[341109752,1730386253349,-500.0,0.00055342,120]
[341109753,1730386253359,-500.0,0.00055342,120]
[341109754,1730386253369,-524.14,0.00055342,120]
[341109755,1730386253378,-500.0,0.00055342,120]
[341109756,1730386253387,-500.0,0.00055342,120]
[341109757,1730386253397,-500.0,0.00055342,120]
[341109758,1730386253407,-500.0,0.00055342,120]
[341109759,1730386253416,-948.36,0.00055342,120]
[341109760,1730386253427,-571.10845931,0.00055342,120]
[341109761,1730386253437,-500.0,0.00055342,120]
[341109762,1730386253447,-500.0,0.00055342,120]
[341109763,1730386253457,-500.0,0.00055342,120]
[341109764,1730386253466,-500.0,0.00055342,120]
[341109765,1730386253475,-386.7,0.00055342,120]
[341109766,1730386253485,-517.45,0.00055342,120]
[341109767,1730386253495,-500.0,0.00055342,120]
[341109768,1730386253505,-500.0,0.00055342,120]
[341109769,1730386253514,-500.0,0.00055342,120]
[341109770,1730386253524,-535.92,0.00055342,120]
[341109771,1730386253533,-500.0,0.00055342,120]
[341109772,1730386253542,-1682.6,0.00055342,2]
[341109773,1730386253551,-1964.11,0.00055342,120]
[341109774,1730386253561,-500.0,0.00055342,120]
[341109775,1730386253572,-558.86,0.00055342,120]
[341109776,1730386253581,-500.0,0.00055342,120]
[341109777,1730386253591,-500.0,0.00055342,120]
[341109778,1730386253600,-500.0,0.00055342,120]
[341109779,1730386253610,-669.22,0.00055342,120]
[341109780,1730386253620,-500.0,0.00055342,120]
[341109781,1730386253629,-500.0,0.00055342,120]
[341109782,1730386253639,-500.0,0.00055342,120]
[341109783,1730386253723,-2000.0,0.00055342,120]
[341109784,1730386253734,-524.65254712,0.00055342,120]
[341109785,1730386253744,-529.98412812,0.00055342,120]
[341109786,1730386253757,-500.0,0.00055342,120]
[341109787,1730386253767,-533.75649289,0.00055342,120]
[341109788,1730386253777,-500.0,0.00055342,120]
[341109789,1730386253786,-572.45031214,0.00055342,120]
[341109790,1730386253797,-500.0,0.00055342,120]
[341109791,1730386253807,-500.0,0.00055342,120]
[341109792,1730386253817,-526.68259077,0.00055342,120]
[341109793,1730386253827,-660.1,0.00055342,120]
[341109794,1730386253839,-500.0,0.00055342,120]
[341109795,1730386253848,-427.27591094,0.00055342,120]
[341109796,1730386253860,-553.34,0.00055342,120]
[341109797,1730386253870,-500.0,0.00055342,120]
[341109798,1730386253880,-500.0,0.00055342,120]
[341109799,1730386253889,-385.05380484,0.00055342,120]
[341109800,1730386253899,-500.0,0.00055342,120]
[341109801,1730386253909,-500.0,0.00055342,120]
[341109802,1730386253918,-1035.51,0.00055342,120]
[341109803,1730386253928,-500.0,0.00055342,120]
[341109804,1730386253938,-545.54338757,0.00055342,120]
[341109805,1730386253947,-500.0,0.00055342,120]
[341109806,1730386253957,-500.0,0.00055342,120]
[341109807,1730386253967,-1135.77,0.00055342,120]
[341109808,1730386253976,-500.0,0.00055342,120]
[341109809,1730386253986,-500.0,0.00055342,120]
[341109810,1730386253995,-1313.8,0.00055342,120]
[341109811,1730386254005,-500.0,0.00055342,120]
[341109812,1730386254014,-1000.0,0.00055342,120]
[341109813,1730386254023,-500.0,0.00055342,120]
[341109814,1730386254033,-573.54,0.00055342,120]
[341109815,1730386254043,-654.96,0.00055342,120]
[341109816,1730386254052,-531.61,0.00055342,120]
[341109817,1730386254060,-585.34,0.00055342,120]
[341109818,1730386254070,-1000.0,0.00055342,120]
[341109819,1730386254079,-500.0,0.00055342,120]
[341109820,1730386254089,-500.0,0.00055342,120]
[341109821,1730386254100,-500.0,0.00055342,120]
[341109822,1730386254112,-500.0,0.00055342,120]
[341109823,1730386254122,-500.0,0.00055342,120]
[341109824,1730386254131,-500.0,0.00055342,2]
[341109825,1730386254140,-500.0,0.00055342,120]
[341109826,1730386254150,-500.0,0.00055342,120]
[341109827,1730386254159,-1605.18,0.00055342,7]
[341109828,1730386254168,-656.47,0.00055342,120]
[341109829,1730386254178,-1032.7,0.00055342,120]
[341109830,1730386254187,-200.2,0.00055342,7]
[341109831,1730386254197,-1591.58,0.00055342,21]
[341109832,1730386254206,-500.0,0.00055342,120]
[341109833,1730386254215,-500.0,0.00055342,120]
[341109834,1730386254224,-500.0,0.00055342,120]
[341109835,1730386254233,-1220.65,0.00055342,120]
[341109836,1730386254243,-500.0,0.00055342,120]
[341109837,1730386254253,-500.0,0.00055342,120]
[341109838,1730386254263,-430.27509696,0.00055342,7]
[341109839,1730386254273,-500.0,0.00055342,120]
[341109840,1730386254283,-500.0,0.00055342,120]
[341109841,1730386254293,-594.63,0.00055342,120]
[341109842,1730386254303,-500.0,0.00055342,120]
[341109843,1730386254313,-500.0,0.00055342,120]
[341109844,1730386254322,-608.17299257,0.00055342,120]
[341109845,1730386254333,-500.0,0.00055342,120]